fUSD/lending_fUSD_20260219
["ID","MTS","AMOUNT","RATE_DAILY","PERIOD"]
[405988484,1771507010010,-1215.59270393,7.499e-05,2]
[405988485,1771507010041,-1215.59270393,7.499e-05,2]
[405988486,1771507010070,-1215.59270393,7.499e-05,2]
[405988487,1771507010096,-1215.59270393,7.499e-05,2]
[405988488,1771507010123,-1215.59270393,7.499e-05,2]
[405988489,1771507010150,-1215.59270393,7.499e-05,2]
[405988490,1771507010177,-1215.59270393,7.499e-05,2]
[405988491,1771507010203,-1215.59270393,7.499e-05,2]
[405988492,1771507010229,-1215.59270393,7.499e-05,2]
[405988493,1771507010256,-1215.59270393,7.499e-05,2]
[405988494,1771507010284,-1215.59270393,7.499e-05,2]
[405988495,1771507010311,-1215.59270393,7.499e-05,2]
[405988496,1771507010337,-1215.59270393,7.499e-05,2]
[405988497,1771507010363,-1215.59270393,7.499e-05,2]
[405988498,1771507010393,-1215.59270393,7.499e-05,2]
[405988499,1771507010421,-1215.59270393,7.499e-05,2]
[405988500,1771507010452,-1215.59270393,7.499e-05,2]
[405988501,1771507010479,-1215.59270393,7.499e-05,2]
[405988502,1771507010506,-1215.59270393,7.499e-05,2]
[405988503,1771507010532,-1215.59270393,7.499e-05,2]
[405988504,1771507010559,-1215.59270393,7.499e-05,2]
[405988505,1771507010586,-1215.59270393,7.499e-05,2]
[405988506,1771507010614,-1215.59270393,7.499e-05,2]
[405988507,1771507010640,-1215.59270393,7.499e-05,2]
[405988508,1771507010667,-1215.59270393,7.499e-05,2]
[405988509,1771507010694,-1215.59270393,7.499e-05,2]
[405988510,1771507010722,-1215.59270393,7.499e-05,2]
[405988511,1771507010749,-1215.59270393,7.499e-05,2]
[405988512,1771507010787,-1215.59270393,7.499e-05,2]
[405988513,1771507010814,-1215.59270393,7.499e-05,2]
[405988514,1771507010841,-1215.59270393,7.499e-05,2]
[405988515,1771507010868,-1215.59270393,7.499e-05,2]
[405988516,1771507010895,-1215.59270393,7.499e-05,2]
[405988517,1771507010921,-1215.59270393,7.499e-05,2]
[405988518,1771507010948,-39220.3648035,7.5e-05,2]
[405988519,1771507027441,-1182.73884706,7.499e-05,2]
[405988520,1771507027471,-1182.73884706,7.499e-05,2]
[405988521,1771507027505,-1182.73884706,7.499e-05,2]
[405988522,1771507027534,-1182.73884706,7.499e-05,2]
[405988523,1771507027564,-1182.73884706,7.499e-05,2]
[405988524,1771507027592,-1182.73884706,7.499e-05,2]
[405988525,1771507027621,-1182.73884706,7.499e-05,2]
[405988526,1771507027649,-1182.73884706,7.499e-05,2]
[405988527,1771507027677,-1182.73884706,7.499e-05,2]
[405988528,1771507027905,-1182.73884706,7.499e-05,2]
[405988529,1771507027936,-1182.73884706,7.499e-05,2]
[405988530,1771507027967,-1182.73884706,7.499e-05,2]
[405988531,1771507027995,-1182.73884706,7.499e-05,2]
[405988532,1771507028022,-1182.73884706,7.499e-05,2]
[405988533,1771507028050,-1182.73884706,7.499e-05,2]
[405988534,1771507028078,-1182.73884706,7.499e-05,2]
[405988535,1771507028108,-1182.73884706,7.499e-05,2]
[405988536,1771507028136,-1182.73884706,7.499e-05,2]
[405988537,1771507028163,-1182.73884706,7.499e-05,2]
[405988538,1771507028192,-1182.73884706,7.499e-05,2]
[405988539,1771507028218,-1182.73884706,7.499e-05,2]
[405988540,1771507028245,-1182.73884706,7.499e-05,2]
[405988541,1771507028272,-1182.73884706,7.499e-05,2]
[405988542,1771507028299,-1182.73884706,7.499e-05,2]
[405988543,1771507028326,-1182.73884706,7.499e-05,2]
[405988544,1771507028356,-1182.73884706,7.499e-05,2]
[405988545,1771507028386,-1182.73884706,7.499e-05,2]
[405988546,1771507028416,-1182.73884706,7.499e-05,2]
[405988547,1771507028444,-1182.73884706,7.499e-05,2]
[405988548,1771507028472,-1182.73884706,7.499e-05,2]
[405988549,1771507028500,-1182.73884706,7.499e-05,2]
[405988550,1771507028527,-63335.09574114,7.5e-05,2]
[405988551,1771507207468,152.0,7.5e-05,3]
[405988552,1771507512923,152.0,7.5e-05,3]
[405988553,1771507531091,2755.80984986,0.0002,120]
[405988559,1771507639591,500.0,6.8e-05,2]
[405988560,1771507641670,1100.0,6.9e-05,2]
[405988561,1771507643925,1700.0,7e-05,2]
[405988562,1771507645926,2300.0,9e-05,3]
[405988565,1771507664020,310.25932007,0.0002,120]
[405988675,1771507807683,152.0,7.5e-05,3]
[405988687,1771507831872,-185.344,7.252e-05,2]
[405988690,1771507831881,-638.297,7.252e-05,2]
[405988709,1771507838004,-932.44184216,7.252e-05,2]
[405988710,1771507838176,-279.69115784,7.252e-05,2]
[405988711,1771507838186,-150.0,7.268e-05,2]
[405988712,1771507838196,-540.63123168,7.269e-05,2]
[405988713,1771507838206,-540.63123168,7.269e-05,2]
[405988714,1771507838216,-540.63123168,7.269e-05,2]
[405988715,1771507838225,-540.63123168,7.269e-05,2]
[405988716,1771507838235,-540.63123168,7.269e-05,2]
[405988717,1771507838244,-540.63123168,7.269e-05,2]
[405988718,1771507838254,-540.63123168,7.269e-05,2]
[405988719,1771507838263,-540.63123168,7.269e-05,2]
[405988720,1771507838273,-540.63123168,7.269e-05,2]
[405988721,1771507838283,-540.63123168,7.269e-05,2]
[405988722,1771507838292,-540.63123168,7.269e-05,2]
[405988723,1771507838302,-540.63123168,7.269e-05,2]
[405988724,1771507838315,-540.63123168,7.269e-05,2]
[405988725,1771507838325,-540.63123168,7.269e-05,2]
[405988726,1771507838335,-540.63123168,7.269e-05,2]
[405988727,1771507838344,-540.63123168,7.269e-05,2]
[405988728,1771507838354,-540.63123168,7.269e-05,2]
[405988729,1771507838363,-540.63123168,7.269e-05,2]
[405988730,1771507838373,-540.63123168,7.269e-05,2]
[405988731,1771507838383,-540.63123168,7.269e-05,2]
[405988732,1771507838393,-540.63123168,7.269e-05,2]
[405988733,1771507838403,-540.63123168,7.269e-05,2]
[405988734,1771507838413,-540.63123168,7.269e-05,2]
[405988735,1771507838423,-540.63123168,7.269e-05,2]
[405988736,1771507838433,-540.63123168,7.269e-05,2]
[405988737,1771507838443,-540.63123168,7.269e-05,2]
[405988738,1771507838453,-540.63123168,7.269e-05,2]
[405988739,1771507838463,-540.63123168,7.269e-05,2]
[405988740,1771507838472,-348.21368359,7.269e-05,2]
[405988741,1771507840187,-192.41754809,7.269e-05,2]
[405988742,1771507840197,-301.37745191,7.269e-05,2]
[405988756,1771507844813,-239.25377977,7.269e-05,2]
[405988757,1771507844822,-540.63123168,7.269e-05,2]
[405988758,1771507844831,-78.99449326,7.269e-05,2]
[405988762,1771507845919,-460.28228,7.269e-05,2]
[405988763,1771507845930,-1.35445842,7.269e-05,2]
[405988764,1771507845939,-540.63123168,7.269e-05,2]
[405988765,1771507845948,-381.09452087,7.269e-05,2]
[405988766,1771507845958,-159.53671081,7.269e-05,2]
[405988767,1771507845968,-540.63123168,7.269e-05,2]
[405988768,1771507845978,-540.63123168,7.269e-05,2]
[405988769,1771507845987,-540.63123168,7.269e-05,2]
[405988770,1771507845997,-347.96622059,7.269e-05,2]
[405990849,1771507896419,673.70964727,7e-05,2]
[405990850,1771507896472,1895.6988243,7e-05,2]
[405990851,1771507896519,3234.06792286,7e-05,2]
[405990852,1771507896583,896.53360557,7e-05,2]
[405990853,1771507896609,2628.48412133,7e-05,2]
[405990854,1771507896655,5154.33662955,7e-05,2]
[405990856,1771508000857,954.91641212,7e-05,2]
[405990857,1771508000915,1572.01899467,7e-05,2]
[405990858,1771508000983,1706.17173002,7e-05,2]
[405990859,1771508001022,2457.42704796,7e-05,2]
[405990860,1771508001081,391.47492362,7e-05,2]
[405990861,1771508102397,452.93501156,7e-05,2]
[405990862,1771508102539,755.87002317,7e-05,2]
[405990863,1771508102574,1709.19585688,7e-05,2]
[405990864,1771508102598,76.65320558,7e-05,2]
[405990865,1771508102671,998.21803238,7e-05,2]
[405990867,1771508510943,-3116.43699005,7.013e-05,2]
[405990868,1771508510972,-210.0,7.013e-05,2]
[405990869,1771508510999,-1480.344,7.025e-05,2]
[405990870,1771508511025,-185.343,7.025e-05,2]
[405990871,1771508516655,-3636.27692574,7.069e-05,2]
[405990872,1771508516711,-10000.01,7.069e-05,2]
[405990873,1771508519620,-10000.01,7.069e-05,2]
[405990874,1771508618153,500.0,6.925e-05,2]
[405990875,1771508800102,99500.0,6.969e-05,2]
[405991462,1771509032057,-700.0,6.8e-05,2]
[405991463,1771509032066,-300.0,6.8e-05,2]
[405991464,1771509032075,-250.0,6.838e-05,2]
[405991465,1771509032084,-1099.93978558,6.876e-05,2]
[405991466,1771509032113,-100.06021442,6.876e-05,2]
[405991467,1771509032122,-3885.38719199,6.877e-05,2]
[405991468,1771509032132,-1402.26610796,6.877e-05,2]
[405991469,1771509032143,-923.34670005,6.877e-05,2]
[405991470,1771509032152,-300.0,6.899e-05,2]
[405991471,1771509032162,-300.0,6.899e-05,2]
[405991472,1771509032171,-300.0,6.899e-05,2]
[405991473,1771509032180,-1500.0,6.9e-05,2]
[405991474,1771509032189,-700.0,6.9e-05,2]
[405991475,1771509032198,-151.0,6.966e-05,2]
[405991476,1771509032207,-623.57937872,6.968e-05,2]
[405991477,1771509032218,-623.57937872,6.968e-05,2]
[405991478,1771509032227,-623.57937872,6.968e-05,2]
[405991479,1771509032236,-623.57937872,6.968e-05,2]
[405991480,1771509032245,-623.57937872,6.968e-05,2]
[405991481,1771509032254,-623.57937872,6.968e-05,2]
[405991482,1771509032264,-623.57937872,6.968e-05,2]
[405991483,1771509032273,-623.57937872,6.968e-05,2]
[405991484,1771509032282,-623.57937872,6.968e-05,2]
[405991486,1771509032291,-623.57937872,6.968e-05,2]
[405991487,1771509032300,-623.57937872,6.968e-05,2]
[405991489,1771509032310,-623.57937872,6.968e-05,2]
[405991491,1771509032319,-623.57937872,6.968e-05,2]
[405991493,1771509032328,-623.57937872,6.968e-05,2]
[405991495,1771509032337,-623.57937872,6.968e-05,2]
[405991496,1771509032346,-623.57937872,6.968e-05,2]
[405991498,1771509032355,-623.57937872,6.968e-05,2]
[405991500,1771509032364,-623.57937872,6.968e-05,2]
[405991502,1771509032373,-623.57937872,6.968e-05,2]
[405991503,1771509032382,-623.57937872,6.968e-05,2]
[405991504,1771509032391,-623.57937872,6.968e-05,2]
[405991505,1771509032400,-623.57937872,6.968e-05,2]
[405991506,1771509032409,-623.57937872,6.968e-05,2]
[405991507,1771509032418,-623.57937872,6.968e-05,2]
[405991508,1771509032428,-623.57937872,6.968e-05,2]
[405991509,1771509032438,-623.57937872,6.968e-05,2]
[405991510,1771509032446,-623.57937872,6.968e-05,2]
[405991511,1771509032455,-623.57937872,6.968e-05,2]
[405991512,1771509032465,-623.57937872,6.968e-05,2]
[405991513,1771509032475,-623.57937872,6.968e-05,2]
[405991514,1771509032484,-623.57937872,6.968e-05,2]
[405991515,1771509032493,-623.57937872,6.968e-05,2]
[405991516,1771509032503,-623.57937872,6.968e-05,2]
[405991517,1771509032514,-623.57937872,6.968e-05,2]
[405991518,1771509032523,-623.57937872,6.968e-05,2]
[405991519,1771509032532,-623.57937872,6.968e-05,2]
[405991520,1771509032546,-623.57937872,6.968e-05,2]
[405991521,1771509032555,-623.57937872,6.968e-05,2]
[405991522,1771509032564,-623.57937872,6.968e-05,2]
[405991523,1771509032574,-623.57937872,6.968e-05,2]
[405991524,1771509032583,-623.57937872,6.968e-05,2]
[405991525,1771509032592,-623.57937872,6.968e-05,2]
[405991526,1771509032602,-623.57937872,6.968e-05,2]
[405991527,1771509032621,-623.57937872,6.968e-05,2]
[405991528,1771509032631,-623.57937872,6.968e-05,2]
[405991529,1771509032641,-623.57937872,6.968e-05,2]
[405991530,1771509032652,-623.57937872,6.968e-05,2]
[405991531,1771509032661,-623.57937872,6.968e-05,2]
[405991532,1771509032671,-623.57937872,6.968e-05,2]
[405991533,1771509032681,-623.57937872,6.968e-05,2]
[405991534,1771509032690,-623.57937872,6.968e-05,2]
[405991535,1771509032700,-623.57937872,6.968e-05,2]
[405991536,1771509032709,-620.29738199,6.968e-05,2]
[405991537,1771509032720,-620.29738199,6.968e-05,2]
[405991538,1771509032729,-620.29738199,6.968e-05,2]
[405991539,1771509032738,-620.29738199,6.968e-05,2]
[405991540,1771509032748,-620.29738199,6.968e-05,2]
[405991541,1771509032757,-620.29738199,6.968e-05,2]
[405991542,1771509032768,-620.29738199,6.968e-05,2]
[405991543,1771509032777,-620.29738199,6.968e-05,2]
[405991544,1771509032786,-620.29738199,6.968e-05,2]
[405991545,1771509032796,-620.29738199,6.968e-05,2]
[405991546,1771509032805,-620.29738199,6.968e-05,2]
[405991547,1771509032814,-620.29738199,6.968e-05,2]
[405991548,1771509032823,-620.29738199,6.968e-05,2]
[405991549,1771509032833,-89.34219846,6.968e-05,2]
[405991550,1771509032845,-530.95518353,6.968e-05,2]
[405991551,1771509032855,-620.29738199,6.968e-05,2]
[405991552,1771509032866,-620.29738199,6.968e-05,2]
[405991553,1771509032879,-620.29738199,6.968e-05,2]
[405991554,1771509032888,-620.29738199,6.968e-05,2]
[405991555,1771509032897,-620.29738199,6.968e-05,2]
[405991556,1771509032906,-620.29738199,6.968e-05,2]
[405991557,1771509032915,-620.29738199,6.968e-05,2]
[405991558,1771509032925,-620.29738199,6.968e-05,2]
[405991559,1771509032935,-620.29738199,6.968e-05,2]
[405991560,1771509032944,-620.29738199,6.968e-05,2]
[405991561,1771509032956,-620.29738199,6.968e-05,2]
[405991562,1771509032964,-620.29738199,6.968e-05,2]
[405991563,1771509032973,-620.29738199,6.968e-05,2]
[405991564,1771509032982,-620.29738199,6.968e-05,2]
[405991565,1771509032995,-10.70182919,6.968e-05,2]
[405991566,1771509033007,-606.4940659,6.968e-05,2]
[405991567,1771509033016,-617.19589509,6.968e-05,2]
[405991568,1771509033025,-617.19589509,6.968e-05,2]
[405991569,1771509033035,-617.19589509,6.968e-05,2]
[405991570,1771509033044,-617.19589509,6.968e-05,2]
[405991571,1771509033054,-617.19589509,6.968e-05,2]
[405991572,1771509033063,-617.19589509,6.968e-05,2]
[405991573,1771509033073,-617.19589509,6.968e-05,2]
[405991574,1771509033082,-617.19589509,6.968e-05,2]
[405991575,1771509033091,-617.19589509,6.968e-05,2]
[405991576,1771509033100,-150.0,6.968e-05,2]
[405991577,1771509033110,-18204.13006883,6.969e-05,2]
[405991578,1771509033122,-2369.22227224,6.969e-05,2]
[405991579,1771509033133,-457.76704283,6.969e-05,2]
[405991580,1771509033145,-1848.75756851,6.969e-05,2]
[405991581,1771509033156,-349.0701965,6.969e-05,2]
[405991582,1771509033167,-336.8428,6.969e-05,2]
[405991583,1771509033179,-953.31026791,6.969e-05,2]
[405991584,1771509033190,-310.31,6.969e-05,2]
[405991585,1771509033201,-1543.57054066,6.969e-05,2]
[405991586,1771509038185,-66000.00000015,6.969e-05,2]
[405991587,1771509038242,-308.5174995,6.969e-05,2]
[405991588,1771509038301,-903.93718342,6.969e-05,2]
[405991589,1771509038312,-35080.45007758,6.969e-05,2]
[405991590,1771509038359,-77408.899055,6.969e-05,2]
[405991591,1771509038370,-1317.5659846,6.969e-05,2]
[405991592,1771509038381,-1214.669964,6.969e-05,2]
[405991605,1771509040248,-1320.6,6.969e-05,2]
[405991607,1771509040260,-333.76,6.969e-05,2]
[405991608,1771509040305,-51620.98763325,6.969e-05,2]
[405991609,1771509040317,-903.30059546,6.969e-05,2]
[405991610,1771509040328,-1639.99786457,6.969e-05,2]
[405991611,1771509040367,-548.6655232,6.969e-05,2]
[405991612,1771509040378,-585.16885174,6.969e-05,2]
[405991613,1771509040388,-801.54783843,6.969e-05,2]
[405991614,1771509040643,-258115.66189331,6.969e-05,2]
[405991615,1771509040655,-82874.90072932,6.969e-05,2]
[405991616,1771509040667,-1239.04057907,6.969e-05,2]
[405991617,1771509040678,-732.18335078,6.969e-05,2]
[405991618,1771509040690,-289.93082701,6.969e-05,2]
[405991619,1771509040709,-767.86334472,6.969e-05,2]
[405991683,1771509045415,-697.17968,6.969e-05,2]
[405991684,1771509045427,-769.24854739,6.969e-05,2]
[405991685,1771509045465,-555.870015,6.969e-05,2]
[405991686,1771509046074,-474.209881,6.969e-05,2]
[405991687,1771509046085,-2701.60771909,6.969e-05,2]
[405991688,1771509046300,-771.84,6.969e-05,2]
[405991689,1771509046311,-33000.0,6.969e-05,2]
[405991690,1771509046322,-1305.48857669,6.969e-05,2]
[405991691,1771509046333,-1338871.82004762,6.969e-05,2]
[405991692,1771509046361,-7289.13127587,6.969e-05,2]
[405991693,1771509046372,-725.91928473,6.969e-05,2]
[405991694,1771509046383,-39737.31843814,6.969e-05,2]
[405991713,1771509774206,-10000.01,6.769e-05,2]
[405991714,1771509779985,-10000.01,6.769e-05,2]
[405991718,1771509955575,-150.0,6.768e-05,2]
[405991719,1771509955602,-650.0,6.768e-05,2]
[405991720,1771509959055,-550.0,6.768e-05,2]
[405991721,1771509959084,-250.0,6.768e-05,2]
[405991722,1771509964931,-50.0,6.768e-05,2]
[405991723,1771509964956,-300.0,6.768e-05,2]
[405991724,1771509965203,-250.0,6.768e-05,2]
[405991725,1771509965233,-200.0,6.769e-05,2]
[405991742,1771510232263,-266.0,6.767e-05,2]
[405991743,1771510232273,-150.0,6.767e-05,2]
[405991744,1771510232285,-300.0,6.767e-05,2]
[405991745,1771510232297,-1200.0,6.767e-05,2]
[405991746,1771510232308,-208.0,6.767e-05,2]
[405991747,1771510232319,-500.0,6.768e-05,2]
[405991748,1771510232328,-500.0,6.768e-05,2]
[405991749,1771510232339,-500.0,6.768e-05,2]
[405991750,1771510232348,-500.0,6.768e-05,2]
[405991751,1771510232357,-500.0,6.768e-05,2]
[405991752,1771510232366,-500.0,6.768e-05,2]
[405991753,1771510232375,-500.0,6.768e-05,2]
[405991754,1771510232385,-500.0,6.768e-05,2]
[405991755,1771510232394,-252.3720789,6.768e-05,2]
[405991756,1771510232403,-500.0,6.768e-05,2]
[405991757,1771510232412,-500.0,6.768e-05,2]
[405991758,1771510232422,-500.0,6.768e-05,2]
[405991759,1771510232433,-8775.46799966,6.769e-05,2]
[405991765,1771510232587,-1152.3753352,6.769e-05,2]
[405991766,1771510232599,-1301208.36781489,6.769e-05,2]
[405991767,1771510232610,-158505.54300725,6.769e-05,2]
[405991768,1771510232622,-146416.87441211,6.769e-05,2]
[405991769,1771510232633,-171269.46352418,6.769e-05,2]
[405991770,1771510232645,-353.5,6.769e-05,2]
[405991771,1771510232657,-18489.14208089,6.769e-05,2]
[405991772,1771510232669,-1348.91144741,6.769e-05,2]
[405991783,1771510238307,-950.98,6.769e-05,2]
[405991784,1771510238367,-143786.126591,6.769e-05,2]
[405991915,1771510240407,-659.9,6.769e-05,2]
[405991923,1771510240467,-1649.74987977,6.769e-05,2]
[405991924,1771510240478,-1023.24592403,6.769e-05,2]
[405991925,1771510240489,-410.5488391,6.769e-05,2]
[405991926,1771510240525,-907.66616332,6.769e-05,2]
[405991927,1771510240806,-156132.59168119,6.769e-05,2]
[405991928,1771510240816,-1200.0,7e-05,2]
[405991929,1771510240828,-250.0,7.445e-05,2]
[405991930,1771510240838,-250.0,7.445e-05,2]
[405991931,1771510240847,-250.0,7.445e-05,2]
[405991932,1771510240857,-578.20924308,7.467e-05,2]
[405991933,1771510240868,-500.0,7.467e-05,2]
[405991935,1771510240878,-721.12765535,7.467e-05,2]
[405991937,1771510240888,-693.3919763,7.467e-05,2]
[405991939,1771510240897,-719.04747942,7.522e-05,2]
[405991941,1771510240907,-745.65223616,7.577e-05,2]
[405991943,1771510240916,-773.2413689,7.632e-05,2]
[405991945,1771510240926,-801.85129955,7.687e-05,2]
[405991947,1771510240935,-831.51979763,7.742e-05,2]
[405991949,1771510240944,-686.0,7.757e-05,2]
[405991951,1771510240954,-862.28603014,7.797e-05,2]
[405991952,1771510240963,-294.0,7.798e-05,2]
[405991953,1771510240972,-894.19061326,7.852e-05,2]
[405991954,1771510240982,-154.0,7.875e-05,2]
[405991955,1771510240992,-927.27566595,7.907e-05,2]
[405991956,1771510241002,-961.58486559,7.962e-05,2]
[405991957,1771510241012,-4511.83616926,8e-05,2]
[405991961,1771510245816,-7302.26390554,8e-05,2]
[405991962,1771510245825,-997.16350561,8.017e-05,2]
[405991963,1771510245835,-162.312566,8.219e-05,2]
[405991964,1771510245844,-150.0,8.442e-05,2]
[405991965,1771510245854,-150.0,8.442e-05,2]
[405991966,1771510245863,-254.75182249,8.442e-05,2]
[405991967,1771510245873,-150.0,8.442e-05,2]
[405991968,1771510245883,-150.0,8.497e-05,2]
[405991969,1771510245892,-150.0,8.497e-05,2]
[405991970,1771510245902,-150.0,8.498e-05,2]
[405991971,1771510245911,-200.0,8.552e-05,2]
[405991972,1771510245921,-200.0,8.552e-05,2]
[405991973,1771510245931,-500.0,8.552e-05,2]
[405991974,1771510245940,-500.0,8.552e-05,2]
[405991975,1771510245950,-150.0,8.553e-05,2]
[405991976,1771510245959,-500.06595442,8.604e-05,2]
[405991977,1771510245969,-488.66878926,8.604e-05,2]
[405991978,1771510245979,-500.0,8.604e-05,2]
[405991979,1771510245989,-501.38955269,8.604e-05,2]
[405991980,1771510245999,-150.7,8.604e-05,2]
[405991981,1771510246008,-500.0,8.607e-05,2]
[405991982,1771510246018,-500.0,8.607e-05,2]
[405991983,1771510246027,-200.0,8.608e-05,2]
[405991984,1771510246036,-831.47,8.614e-05,2]
[405991985,1771510246046,-500.0,8.662e-05,2]
[405991986,1771510246056,-154.49885719,8.662e-05,2]
[405991987,1771510246065,-1500.0,8.678e-05,2]
[405991988,1771510246074,-500.0,8.682e-05,2]
[405991989,1771510246084,-500.0,8.716e-05,2]
[405991990,1771510246094,-150.7,8.731e-05,2]
[405991991,1771510246103,-26825.39,8.74e-05,2]
[405991992,1771510246112,-500.0,8.771e-05,2]
[405991993,1771510246122,-500.0,8.826e-05,2]
[405991994,1771510246132,-150.7,8.857e-05,2]
[405991995,1771510246141,-500.0,8.881e-05,2]
[405991996,1771510246151,-2511.42,8.894e-05,2]
[405991997,1771510246160,-211.98,8.933e-05,2]
[405991998,1771510246169,-500.0,8.936e-05,2]
[405991999,1771510246178,-320.0,8.98e-05,2]
[405992000,1771510246188,-150.7,8.984e-05,2]
[405992001,1771510246198,-153.57378643,8.99e-05,2]
[405992002,1771510246212,-200.0,9.042e-05,2]
[405992003,1771510246222,-150.7,9.11e-05,2]
[405992004,1771510246231,-150.7,9.237e-05,2]
[405992005,1771510246240,-649.73993373,9.273e-05,2]
[405992006,1771510246252,-500.0,9.288e-05,2]
[405992007,1771510246261,-1209.0,9.325e-05,2]
[405992008,1771510246270,-2453.0,9.325e-05,2]
[405992009,1771510246280,-413.0,9.325e-05,2]
[405992010,1771510246290,-5974.0,9.325e-05,2]
[405992011,1771510246299,-150.7,9.363e-05,2]
[405992012,1771510246309,-150.7,9.49e-05,2]
[405992013,1771510246318,-150.7,9.616e-05,2]
[405992014,1771510246328,-150.7,9.743e-05,2]
[405992015,1771510246338,-887.42,9.787e-05,2]
[405992016,1771510246347,-166.66,9.819e-05,2]
[405992017,1771510246356,-150.7,9.869e-05,2]
[405992018,1771510246365,-150.7,9.996e-05,2]
[405992019,1771510246375,-151.0,0.0001,2]
[405992020,1771510246384,-151.0,0.0001,2]
[405992021,1771510246615,-151.0,0.0001,2]
[405992022,1771510246624,-151.0,0.0001,2]
[405992023,1771510246634,-151.0,0.0001,2]
[405992024,1771510246643,-151.0,0.0001,2]
[405992025,1771510246652,-151.0,0.0001,2]
[405992026,1771510246661,-151.0,0.0001,2]
[405992027,1771510246671,-151.0,0.0001,2]
[405992028,1771510246680,-151.0,0.0001,2]
[405992029,1771510246690,-151.0,0.0001,2]
[405992030,1771510246699,-500.0,0.0001,2]
[405992031,1771510246709,-500.0,0.0001,2]
[405992032,1771510246718,-500.0,0.0001,2]
[405992033,1771510246727,-500.0,0.0001,2]
[405992034,1771510246737,-500.0,0.0001,2]
[405992035,1771510246746,-500.0,0.0001,2]
[405992036,1771510246755,-500.0,0.0001,2]
[405992037,1771510246768,-500.0,0.0001,2]
[405992038,1771510246778,-500.0,0.0001,2]
[405992039,1771510246788,-500.0,0.0001,2]
[405992040,1771510246797,-500.0,0.0001,2]
[405992041,1771510246806,-500.0,0.0001,2]
[405992042,1771510246815,-500.0,0.0001,2]
[405992043,1771510246824,-500.0,0.0001,2]
[405992044,1771510246834,-500.0,0.0001,2]
[405992045,1771510246844,-500.0,0.0001,2]
[405992046,1771510246853,-500.0,0.0001,2]
[405992047,1771510246862,-500.0,0.0001,2]
[405992048,1771510246871,-500.0,0.0001,2]
[405992049,1771510246882,-500.0,0.0001,2]
[405992050,1771510246892,-500.0,0.0001,2]
[405992051,1771510246901,-500.0,0.0001,2]
[405992052,1771510246911,-1333.33333,0.0001,2]
[405992053,1771510246920,-1333.33333,0.0001,2]
[405992054,1771510246929,-1333.33334,0.0001,2]
[405992055,1771510246938,-1333.33333,0.0001,2]
[405992056,1771510246948,-1333.33333,0.0001,2]
[405992057,1771510246957,-1333.33334,0.0001,2]
[405992058,1771510246969,-505.38,0.00010032,2]
[405992059,1771510246979,-320.0,0.00010102,2]
[405992060,1771510246989,-150.7,0.00010123,2]
[405992061,1771510246998,-505.38,0.00010125,2]
[405992062,1771510247007,-166.66,0.00010143,2]
[405992063,1771510247017,-599.60298507,0.00010206,2]
[405992064,1771510247026,-747.8093786,0.00010206,2]
[405992065,1771510247035,-505.38,0.00010218,2]
[405992066,1771510247044,-1000.0,0.00010301,2]
[405992067,1771510247054,-505.38,0.00010312,2]
[405992068,1771510247063,-505.38,0.00010405,2]
[405992069,1771510247072,-1338.0,0.00010448,2]
[405992070,1771510247082,-617.0,0.00010448,2]
[405992071,1771510247091,-1293.281,0.00010448,2]
[405992072,1771510247100,-150.0,0.00010448,2]
[405992073,1771510247109,-166.66,0.00010467,2]
[405992074,1771510247118,-505.38,0.00010498,2]
[405992075,1771510247128,-505.38,0.00010591,2]
[405992076,1771510247137,-505.38,0.00010684,2]
[405992077,1771510247145,-505.38,0.00010777,2]
[405992078,1771510247157,-166.66,0.00010791,2]
[405992079,1771510247167,-505.38,0.00010871,2]
[405992080,1771510247175,-192.18787401,0.000109,2]
[405992081,1771510247185,-150.0,0.00010959,2]
[405992082,1771510247195,-166.66,0.00010959,2]
[405992083,1771510247204,-505.38,0.00010964,2]
[405992084,1771510247215,-300.0,0.00011,2]
[405992085,1771510247224,-505.38,0.00011057,2]
[405992086,1771510247233,-166.66,0.00011068,2]
[405992087,1771510247244,-5619.22077848,0.00011099,2]
[405992088,1771510247253,-5619.22077846,0.00011099,2]
[405992089,1771510247263,-5619.22077846,0.00011099,2]
[405992090,1771510247272,-160.84999992,0.00011099,2]
[405992091,1771510247282,-160.84999992,0.00011099,2]
[405992092,1771510247291,-166.66,0.00011115,2]
[405992093,1771510247300,-505.38,0.0001115,2]
[405992094,1771510247309,-166.66,0.00011178,2]
[405992095,1771510247319,-320.0,0.00011225,2]
[405992096,1771510247327,-5308.25,0.00011233,2]
[405992097,1771510247336,-505.38,0.00011243,2]